[Event "*** Titled Tuesday Blitz"]
[Site "Chess.com"]
[Date "2021.04.27"]
[Round "6"]
[White "chessbia"]
[Black "TengisChess"]
[Result "0-1"]
[WhiteElo "2332"]
[BlackElo "2546"]
[TimeControl "180+1"]
[EndTime "11:06:36 PDT"]
[Termination "TengisChess won on time"]

1. d4 {[%clk 0:03:00.9]} 1... Nf6 {[%clk 0:02:59.3]} 2. c4 {[%clk 0:03:00.6]}
2... c5 {[%clk 0:02:58.1]} 3. d5 {[%clk 0:02:59.8]} 3... d6 {[%clk 0:02:58.4]}
4. Nc3 {[%clk 0:02:59.3]} 4... g6 {[%clk 0:02:59.3]} 5. Nf3 {[%clk 0:02:56.5]}
5... Bg7 {[%clk 0:03:00.2]} 6. e3 {[%clk 0:02:54]} 6... O-O {[%clk 0:03:01.1]}
7. Bd3 {[%clk 0:02:53.7]} 7... Bg4 {[%clk 0:03:01.5]} 8. O-O {[%clk 0:02:52]}
8... Na6 {[%clk 0:03:01]} 9. h3 {[%clk 0:02:47.1]} 9... Bxf3 {[%clk 0:03:01.1]}
10. Qxf3 {[%clk 0:02:46.8]} 10... Nc7 {[%clk 0:03:02]} 11. a4 {[%clk 0:02:45.5]}
11... Nd7 {[%clk 0:03:02.9]} 12. Bd2 {[%clk 0:02:39.8]} 12... Ne5 {[%clk
0:03:02.9]} 13. Qe2 {[%clk 0:02:40.3]} 13... Nxd3 {[%clk 0:03:03.3]} 14. Qxd3
{[%clk 0:02:41.2]} 14... a6 {[%clk 0:03:04]} 15. a5 {[%clk 0:02:37.3]} 15... Rb8
{[%clk 0:03:04.3]} 16. Na4 {[%clk 0:02:25.4]} 16... Qe8 {[%clk 0:02:50.6]} 17.
Bc3 {[%clk 0:02:22.1]} 17... f6 {[%clk 0:02:44.9]} 18. Nb6 {[%clk 0:02:10.1]}
18... Na8 {[%clk 0:02:44.3]} 19. Nxa8 {[%clk 0:01:57.2]} 19... Rxa8 {[%clk
0:02:45.2]} 20. Ra3 {[%clk 0:01:53.8]} 20... Rb8 {[%clk 0:02:44.3]} 21. Rb3
{[%clk 0:01:48.2]} 21... Qd7 {[%clk 0:02:43.9]} 22. Qe4 {[%clk 0:01:24.7]} 22...
Rbc8 {[%clk 0:02:40.5]} 23. Re1 {[%clk 0:01:02.5]} 23... Rc7 {[%clk 0:02:37.7]}
24. f4 {[%clk 0:00:49.1]} 24... f5 {[%clk 0:02:37.3]} 25. Qd3 {[%clk 0:00:48.1]}
25... Qa4 {[%clk 0:02:31.6]} 26. Bxg7 {[%clk 0:00:44.7]} 26... Kxg7 {[%clk
0:02:32.5]} 27. Qc3+ {[%clk 0:00:44.1]} 27... Kg8 {[%clk 0:02:32.4]} 28. Kf2
{[%clk 0:00:39.1]} 28... Qd7 {[%clk 0:02:27.5]} 29. Re2 {[%clk 0:00:38.1]} 29...
Re8 {[%clk 0:02:26.7]} 30. Rb6 {[%clk 0:00:27.2]} 30... Qa4 {[%clk 0:02:19.4]}
31. h4 {[%clk 0:00:19.9]} 31... Rf8 {[%clk 0:02:18.1]} 32. g3 {[%clk 0:00:19.9]}
32... Qa1 {[%clk 0:02:12.1]} 33. Re1 {[%clk 0:00:17.9]} 33... Qa4 {[%clk
0:02:12.1]} 34. Re2 {[%clk 0:00:17.8]} 34... Qe8 {[%clk 0:02:10.4]} 35. Rb3
{[%clk 0:00:15.5]} 35... Qd8 {[%clk 0:02:08.8]} 36. Rb6 {[%clk 0:00:15.2]} 36...
Rd7 {[%clk 0:02:07.3]} 37. Qb3 {[%clk 0:00:15.7]} 37... Qc8 {[%clk 0:02:06.5]}
38. Qc3 {[%clk 0:00:15.5]} 38... Rc7 {[%clk 0:02:06.1]} 39. Qb3 {[%clk
0:00:15.9]} 39... Qd7 {[%clk 0:02:06.6]} 40. Qc3 {[%clk 0:00:16.1]} 40... Rf7
{[%clk 0:02:06.6]} 41. Qb3 {[%clk 0:00:16.1]} 41... e6 {[%clk 0:01:59.5]} 42.
dxe6 {[%clk 0:00:14.6]} 42... Qxe6 {[%clk 0:02:00.4]} 43. Qd3 {[%clk 0:00:14.9]}
43... Rfd7 {[%clk 0:01:59.9]} 44. Rd2 {[%clk 0:00:14.3]} 44... Rc6 {[%clk
0:01:59.8]} 45. Rxc6 {[%clk 0:00:14.3]} 45... bxc6 {[%clk 0:02:00.7]} 46. b3
{[%clk 0:00:14.4]} 46... Kf7 {[%clk 0:02:00.4]} 47. Qc3 {[%clk 0:00:14.2]} 47...
Qf6 {[%clk 0:02:00.2]} 48. Qd3 {[%clk 0:00:13.1]} 48... Ke7 {[%clk 0:02:00.1]}
49. Qc2 {[%clk 0:00:11.1]} 49... Qe6 {[%clk 0:01:59.3]} 50. Qc3 {[%clk
0:00:10.7]} 50... Qf6 {[%clk 0:01:59.4]} 51. Qd3 {[%clk 0:00:10.9]} 51... Rb7
{[%clk 0:01:58.9]} 52. Kf3 {[%clk 0:00:09.3]} 52... h5 {[%clk 0:01:57.6]} 53. e4
{[%clk 0:00:09.4]} 53... fxe4+ {[%clk 0:01:53.8]} 54. Qxe4+ {[%clk 0:00:10.3]}
54... Qe6 {[%clk 0:01:53.9]} 55. Qxe6+ {[%clk 0:00:08.9]} 55... Kxe6 {[%clk
0:01:53.7]} 56. Rd3 {[%clk 0:00:09.8]} 56... d5 {[%clk 0:01:53.6]} 57. Ke3
{[%clk 0:00:08.1]} 57... Re7 {[%clk 0:01:49.1]} 58. Kf3 {[%clk 0:00:08.1]} 58...
Kd6 {[%clk 0:01:49.1]} 59. g4 {[%clk 0:00:07.1]} 59... Re1 {[%clk 0:01:46.4]}
60. gxh5 {[%clk 0:00:06.5]} 60... gxh5 {[%clk 0:01:47.3]} 61. cxd5 {[%clk
0:00:06.2]} 61... cxd5 {[%clk 0:01:47.1]} 62. Kg2 {[%clk 0:00:03.8]} 62... d4
{[%clk 0:01:42.1]} 63. Rg3 {[%clk 0:00:03.1]} 63... Rb1 {[%clk 0:01:39.2]} 64.
Rg6+ {[%clk 0:00:02.9]} 64... Kd5 {[%clk 0:01:39.6]} 65. Rxa6 {[%clk 0:00:03.1]}
65... Rxb3 {[%clk 0:01:39.7]} 66. Rh6 {[%clk 0:00:03.4]} 66... Ke4 {[%clk
0:01:38.9]} 67. Rxh5 {[%clk 0:00:03]} 67... c4 {[%clk 0:01:39.1]} 68. Rc5 {[%clk
0:00:02.4]} 68... c3 {[%clk 0:01:38.6]} 69. f5 {[%clk 0:00:02.3]} 69... Rb2+
{[%clk 0:01:38.9]} 70. Kf1 {[%clk 0:00:01.8]} 70... c2 {[%clk 0:01:38.8]} 0-1

[Event "*** Titled Tuesday Blitz"]
[Site "Chess.com"]
[Date "2021.04.27"]
[Round "6"]
[White "Jospem"]
[Black "MarkoPe"]
[Result "1-0"]
[WhiteElo "2996"]
[BlackElo "2256"]
[TimeControl "180+1"]
[EndTime "11:06:36 PDT"]
[Termination "Jospem won on time"]

1. e4 {[%clk 0:03:00.9]} 1... c5 {[%clk 0:02:59.3]} 2. Nf3 {[%clk 0:03:00.9]}
2... d6 {[%clk 0:02:59.6]} 3. c3 {[%clk 0:03:00.9]} 3... Nf6 {[%clk 0:03:00]} 4.
h3 {[%clk 0:03:01.5]} 4... g6 {[%clk 0:02:59.6]} 5. Bd3 {[%clk 0:03:02]} 5...
Bg7 {[%clk 0:03:00.1]} 6. Bc2 {[%clk 0:03:02.7]} 6... O-O {[%clk 0:03:00.7]} 7.
O-O {[%clk 0:03:02.4]} 7... Nc6 {[%clk 0:03:00.2]} 8. d4 {[%clk 0:03:02.4]} 8...
e5 {[%clk 0:03:00.9]} 9. d5 {[%clk 0:03:02.6]} 9... Ne7 {[%clk 0:03:00.5]} 10.
b4 {[%clk 0:03:01.3]} 10... cxb4 {[%clk 0:02:57.6]} 11. cxb4 {[%clk 0:03:02.2]}
11... b6 {[%clk 0:02:58.2]} 12. Nc3 {[%clk 0:03:01.9]} 12... Ba6 {[%clk
0:02:58.5]} 13. Re1 {[%clk 0:03:02.4]} 13... Rc8 {[%clk 0:02:58.7]} 14. Bd2
{[%clk 0:03:02.6]} 14... Nh5 {[%clk 0:02:54.5]} 15. b5 {[%clk 0:02:58.6]} 15...
Bb7 {[%clk 0:02:53.2]} 16. a4 {[%clk 0:02:58.8]} 16... f5 {[%clk 0:02:51.1]} 17.
Ng5 {[%clk 0:02:55.6]} 17... Qd7 {[%clk 0:02:41.4]} 18. Ne6 {[%clk 0:02:53.9]}
18... Rf7 {[%clk 0:02:40.5]} 19. exf5 {[%clk 0:02:48.2]} 19... Nxd5 {[%clk
0:02:15.3]} 20. Nxd5 {[%clk 0:02:23.7]} 20... Bxd5 {[%clk 0:02:16.2]} 21. fxg6
{[%clk 0:02:23.4]} 21... hxg6 {[%clk 0:02:06.2]} 22. Bxg6 {[%clk 0:02:22.5]}
22... Qxe6 {[%clk 0:01:50.6]} 23. Qxh5 {[%clk 0:02:17.4]} 23... Rf6 {[%clk
0:01:36.8]} 24. Be4 {[%clk 0:01:56.4]} 24... Bxe4 {[%clk 0:01:31.2]} 25. Rxe4
{[%clk 0:01:57.3]} 25... Rc2 {[%clk 0:01:31.4]} 26. Rd1 {[%clk 0:01:49.5]} 26...
Qd5 {[%clk 0:01:14.5]} 27. Re2 {[%clk 0:01:14.3]} 27... Qd3 {[%clk 0:00:51.5]}
28. Re3 {[%clk 0:01:13.2]} 28... Qd5 {[%clk 0:00:41.1]} 29. Qe2 {[%clk
0:01:07.4]} 29... Bh6 {[%clk 0:00:36.7]} 30. Rd3 {[%clk 0:00:58.1]} 30... Qf7
{[%clk 0:00:25.8]} 31. Qe1 {[%clk 0:00:52.2]} 31... Bg7 {[%clk 0:00:20.2]} 32.
Be3 {[%clk 0:00:49]} 32... Bf8 {[%clk 0:00:16.1]} 33. R3d2 {[%clk 0:00:48.8]}
33... Rc4 {[%clk 0:00:15.5]} 34. a5 {[%clk 0:00:47.5]} 34... Rg6 {[%clk
0:00:08.4]} 35. Qe2 {[%clk 0:00:42]} 35... Rh4 {[%clk 0:00:07]} 36. Kf1 {[%clk
0:00:35]} 36... Qg7 {[%clk 0:00:06.4]} 37. f3 {[%clk 0:00:34]} 37... Rh5 {[%clk
0:00:03.4]} 38. axb6 {[%clk 0:00:33.5]} 38... axb6 {[%clk 0:00:03.4]} 39. Bxb6
{[%clk 0:00:33.7]} 39... Rf5 {[%clk 0:00:01.2]} 40. Bf2 {[%clk 0:00:33.5]} 1-0

[Event "*** Titled Tuesday Blitz"]
[Site "Chess.com"]
[Date "2021.04.27"]
[Round "6"]
[White "Marty435"]
[Black "nrvisakh"]
[Result "0-1"]
[WhiteElo "2607"]
[BlackElo "2818"]
[TimeControl "180+1"]
[EndTime "11:06:39 PDT"]
[Termination "nrvisakh won by checkmate"]

1. e4 {[%clk 0:03:00.9]} 1... c5 {[%clk 0:02:59.3]} 2. Nf3 {[%clk 0:03:01.1]}
2... g6 {[%clk 0:02:59.2]} 3. c3 {[%clk 0:03:00.7]} 3... Nf6 {[%clk 0:02:58.3]}
4. e5 {[%clk 0:02:57.5]} 4... Nd5 {[%clk 0:02:57.6]} 5. d4 {[%clk 0:02:58]} 5...
cxd4 {[%clk 0:02:57.8]} 6. Qb3 {[%clk 0:02:56.8]} 6... e6 {[%clk 0:02:53.9]} 7.
cxd4 {[%clk 0:02:54]} 7... Nc6 {[%clk 0:02:53.9]} 8. Nc3 {[%clk 0:02:45.8]} 8...
Nxc3 {[%clk 0:02:49.8]} 9. bxc3 {[%clk 0:02:46.5]} 9... d6 {[%clk 0:02:50.2]}
10. Bb5 {[%clk 0:02:38.8]} 10... Bd7 {[%clk 0:02:44.2]} 11. exd6 {[%clk
0:02:23.4]} 11... Bxd6 {[%clk 0:02:42.6]} 12. Bh6 {[%clk 0:02:22]} 12... Bf8
{[%clk 0:02:27.5]} 13. Bg5 {[%clk 0:02:05.1]} 13... Be7 {[%clk 0:02:27.2]} 14.
Bh6 {[%clk 0:02:04.7]} 14... Bf8 {[%clk 0:01:25.6]} 15. Bxf8 {[%clk 0:01:44.1]}
15... Kxf8 {[%clk 0:01:23.4]} 16. O-O {[%clk 0:01:44.8]} 16... Kg7 {[%clk
0:01:21.4]} 17. Qb2 {[%clk 0:01:43.8]} 17... Rc8 {[%clk 0:01:11]} 18. Rfe1
{[%clk 0:01:27.4]} 18... Qf6 {[%clk 0:01:09.1]} 19. Re4 {[%clk 0:01:15.2]} 19...
Rhd8 {[%clk 0:01:05.9]} 20. Rae1 {[%clk 0:01:14]} 20... Ne7 {[%clk 0:00:58.7]}
21. Bxd7 {[%clk 0:00:51]} 21... Rxd7 {[%clk 0:00:59.6]} 22. Ne5 {[%clk
0:00:51.6]} 22... Rdc7 {[%clk 0:00:58]} 23. c4 {[%clk 0:00:51.3]} 23... h5
{[%clk 0:00:42]} 24. Qd2 {[%clk 0:00:46.8]} 24... Nf5 {[%clk 0:00:36.3]} 25. h3
{[%clk 0:00:38.7]} 25... Rd8 {[%clk 0:00:19.1]} 26. g4 {[%clk 0:00:18.2]} 26...
hxg4 {[%clk 0:00:20]} 27. hxg4 {[%clk 0:00:18.8]} 27... Nh4 {[%clk 0:00:20.2]}
28. Rf4 {[%clk 0:00:19.3]} 28... Qe7 {[%clk 0:00:13.9]} 29. Qc3 {[%clk
0:00:09.9]} 29... f6 {[%clk 0:00:10.4]} 30. Nd3 {[%clk 0:00:04.1]} 30... Qd6
{[%clk 0:00:07.1]} 31. Re3 {[%clk 0:00:01.6]} 31... Qc6 {[%clk 0:00:04.2]} 32.
Nc5 {[%clk 0:00:01.5]} 32... Qg2# {[%clk 0:00:03.8]} 0-1

[Event "*** Titled Tuesday Blitz"]
[Site "Chess.com"]
[Date "2021.04.27"]
[Round "6"]
[White "A-Fier"]
[Black "Goryachkina"]
[Result "0-1"]
[WhiteElo "2822"]
[BlackElo "2676"]
[TimeControl "180+1"]
[EndTime "11:06:41 PDT"]
[Termination "Goryachkina won by checkmate"]

1. e4 {[%clk 0:03:00.9]} 1... c5 {[%clk 0:03:00]} 2. Nf3 {[%clk 0:02:57.8]} 2...
e6 {[%clk 0:03:00.3]} 3. d4 {[%clk 0:02:58]} 3... cxd4 {[%clk 0:03:00.5]} 4.
Nxd4 {[%clk 0:02:58.6]} 4... a6 {[%clk 0:03:00.9]} 5. c4 {[%clk 0:02:58.6]} 5...
Nf6 {[%clk 0:03:00]} 6. Nc3 {[%clk 0:02:58.8]} 6... Bb4 {[%clk 0:02:59.9]} 7.
Qd3 {[%clk 0:02:56.7]} 7... d6 {[%clk 0:02:59.7]} 8. f3 {[%clk 0:02:55.2]} 8...
Nbd7 {[%clk 0:02:56.9]} 9. Be2 {[%clk 0:02:54.8]} 9... O-O {[%clk 0:02:51.1]}
10. a3 {[%clk 0:02:54.3]} 10... Ne5 {[%clk 0:02:49]} 11. Qc2 {[%clk 0:02:54.2]}
11... Bc5 {[%clk 0:02:49]} 12. Be3 {[%clk 0:02:52.3]} 12... Bd7 {[%clk
0:02:45.8]} 13. O-O {[%clk 0:02:50]} 13... Rc8 {[%clk 0:02:45.5]} 14. Rad1
{[%clk 0:02:49.6]} 14... Ng6 {[%clk 0:02:36.3]} 15. Qd2 {[%clk 0:02:42.7]} 15...
Qc7 {[%clk 0:02:26.3]} 16. b4 {[%clk 0:02:41.6]} 16... Ba7 {[%clk 0:02:24.7]}
17. Kh1 {[%clk 0:02:32]} 17... h6 {[%clk 0:02:13.6]} 18. Nc2 {[%clk 0:02:30.2]}
18... Bb8 {[%clk 0:02:03.1]} 19. f4 {[%clk 0:02:22.1]} 19... Rfd8 {[%clk
0:01:59.9]} 20. Bd3 {[%clk 0:01:54.9]} 20... b5 {[%clk 0:01:53.8]} 21. c5 {[%clk
0:01:51.4]} 21... dxc5 {[%clk 0:01:52.4]} 22. bxc5 {[%clk 0:01:50.3]} 22... Bc6
{[%clk 0:01:43.7]} 23. Qe2 {[%clk 0:01:38.2]} 23... e5 {[%clk 0:01:01.3]} 24. f5
{[%clk 0:01:17.6]} 24... Nf4 {[%clk 0:01:01.2]} 25. Bxf4 {[%clk 0:01:18]} 25...
exf4 {[%clk 0:01:01.6]} 26. Qf3 {[%clk 0:01:18.4]} 26... Qe5 {[%clk 0:00:58.8]}
27. Nb4 {[%clk 0:01:04.8]} 27... Qxc3 {[%clk 0:00:47]} 28. Nxc6 {[%clk
0:01:05.1]} 28... Rxc6 {[%clk 0:00:47]} 29. e5 {[%clk 0:01:05.7]} 29... Nd5
{[%clk 0:00:22.5]} 30. f6 {[%clk 0:00:56.1]} 30... Bxe5 {[%clk 0:00:20.5]} 31.
Qg4 {[%clk 0:00:24.4]} 31... Nxf6 {[%clk 0:00:17.7]} 32. Qf5 {[%clk 0:00:18.7]}
32... Rcc8 {[%clk 0:00:17.1]} 33. c6 {[%clk 0:00:15.4]} 33... g6 {[%clk
0:00:16.3]} 34. Qh3 {[%clk 0:00:15.4]} 34... Qxc6 {[%clk 0:00:14.8]} 35. Qxh6
{[%clk 0:00:14.8]} 35... Ng4 {[%clk 0:00:10.8]} 36. Qh4 {[%clk 0:00:14.5]} 36...
Ne3 {[%clk 0:00:10.3]} 37. Rf3 {[%clk 0:00:10.7]} 37... Rxd3 {[%clk 0:00:09.2]}
38. Rh3 {[%clk 0:00:11.6]} 38... Qxg2# {[%clk 0:00:08]} 0-1

[Event "*** Titled Tuesday Blitz"]
[Site "Chess.com"]
[Date "2021.04.27"]
[Round "6"]
[White "Vanina1989"]
[Black "Harry_Rakkel"]
[Result "1-0"]
[WhiteElo "2809"]
[BlackElo "2604"]
[TimeControl "180+1"]
[EndTime "11:06:44 PDT"]
[Termination "Vanina1989 won on time"]

1. d4 {[%clk 0:03:00.9]} 1... Nf6 {[%clk 0:02:59.2]} 2. c4 {[%clk 0:03:01]} 2...
e6 {[%clk 0:02:59.2]} 3. Nf3 {[%clk 0:03:00.6]} 3... d5 {[%clk 0:02:58.4]} 4.
Nc3 {[%clk 0:02:59.9]} 4... Nbd7 {[%clk 0:02:55.9]} 5. Bg5 {[%clk 0:02:59.3]}
5... Be7 {[%clk 0:02:55.2]} 6. e3 {[%clk 0:02:59.7]} 6... O-O {[%clk 0:02:54.3]}
7. Rc1 {[%clk 0:02:59.9]} 7... a6 {[%clk 0:02:54.1]} 8. cxd5 {[%clk 0:02:59.7]}
8... exd5 {[%clk 0:02:54.2]} 9. Bd3 {[%clk 0:03:00.1]} 9... Re8 {[%clk
0:02:53.5]} 10. O-O {[%clk 0:03:00.2]} 10... c6 {[%clk 0:02:53.3]} 11. Bf4
{[%clk 0:02:56.7]} 11... Nf8 {[%clk 0:02:51.4]} 12. Ne5 {[%clk 0:02:56]} 12...
N6d7 {[%clk 0:02:40.7]} 13. Bg3 {[%clk 0:02:22.5]} 13... Nxe5 {[%clk 0:02:35.6]}
14. dxe5 {[%clk 0:02:22.8]} 14... Bh4 {[%clk 0:02:26.9]} 15. Bxh4 {[%clk
0:02:22.7]} 15... Qxh4 {[%clk 0:02:25.9]} 16. f4 {[%clk 0:02:23]} 16... f6
{[%clk 0:02:20.7]} 17. exf6 {[%clk 0:02:20]} 17... Qxf6 {[%clk 0:02:19.9]} 18.
Qf3 {[%clk 0:02:03.2]} 18... Bf5 {[%clk 0:02:14.4]} 19. Bxf5 {[%clk 0:02:02.5]}
19... Qxf5 {[%clk 0:02:15.3]} 20. Rce1 {[%clk 0:02:01.9]} 20... Re7 {[%clk
0:02:02.1]} 21. e4 {[%clk 0:01:53.9]} 21... dxe4 {[%clk 0:02:00.8]} 22. Rxe4
{[%clk 0:01:52.3]} 22... Rae8 {[%clk 0:02:00.4]} 23. Rfe1 {[%clk 0:01:45]} 23...
Rxe4 {[%clk 0:01:32.6]} 24. Nxe4 {[%clk 0:01:44.5]} 24... Kh8 {[%clk 0:01:23.7]}
25. g3 {[%clk 0:01:10.3]} 25... h6 {[%clk 0:01:22.7]} 26. Kg2 {[%clk 0:01:10.3]}
26... Qd5 {[%clk 0:01:09.3]} 27. b3 {[%clk 0:01:09.8]} 27... a5 {[%clk
0:00:33.2]} 28. Re2 {[%clk 0:01:07.7]} 28... b5 {[%clk 0:00:28.3]} 29. Nc3
{[%clk 0:01:01.7]} 29... Rxe2+ {[%clk 0:00:25.9]} 30. Nxe2 {[%clk 0:01:01.7]}
30... Qd2 {[%clk 0:00:25.9]} 31. Kf2 {[%clk 0:00:58.9]} 31... Qxa2 {[%clk
0:00:22]} 32. Qxc6 {[%clk 0:00:58.2]} 32... Qxb3 {[%clk 0:00:21.4]} 33. Qa8
{[%clk 0:00:54.5]} 33... Qb4 {[%clk 0:00:18.9]} 34. Ke3 {[%clk 0:00:42.6]} 34...
a4 {[%clk 0:00:16.6]} 35. Nd4 {[%clk 0:00:40.8]} 35... Kh7 {[%clk 0:00:14]} 36.
Qe4+ {[%clk 0:00:38.7]} 36... Ng6 {[%clk 0:00:14]} 37. f5 {[%clk 0:00:37.5]}
37... Qe1+ {[%clk 0:00:13]} 38. Ne2 {[%clk 0:00:30.6]} 38... Nf8 {[%clk
0:00:05.6]} 39. f6+ {[%clk 0:00:30.6]} 39... Ng6 {[%clk 0:00:04.3]} 40. Qf5
{[%clk 0:00:22.7]} 40... Qb4 {[%clk 0:00:01.8]} 41. Nf4 {[%clk 0:00:19.7]} 1-0

[Event "*** Titled Tuesday Blitz"]
[Site "Chess.com"]
[Date "2021.04.27"]
[Round "6"]
[White "KuzubovYuriy"]
[Black "MatyChess1"]
[Result "1-0"]
[WhiteElo "2867"]
[BlackElo "2678"]
[TimeControl "180+1"]
[EndTime "11:06:47 PDT"]
[Termination "KuzubovYuriy won on time"]

1. d4 {[%clk 0:03:00.9]} 1... d5 {[%clk 0:02:58]} 2. c4 {[%clk 0:03:00.6]} 2...
e6 {[%clk 0:02:43.4]} 3. Nc3 {[%clk 0:03:00.2]} 3... Bb4 {[%clk 0:02:43.2]} 4.
a3 {[%clk 0:03:00.2]} 4... Bxc3+ {[%clk 0:02:43.2]} 5. bxc3 {[%clk 0:03:01.1]}
5... Nf6 {[%clk 0:02:43.8]} 6. cxd5 {[%clk 0:03:01]} 6... exd5 {[%clk
0:02:43.9]} 7. e3 {[%clk 0:03:00.7]} 7... O-O {[%clk 0:02:43.6]} 8. Bd3 {[%clk
0:03:00.9]} 8... b6 {[%clk 0:02:42.6]} 9. Ne2 {[%clk 0:02:59.8]} 9... Ba6 {[%clk
0:02:43.1]} 10. Bc2 {[%clk 0:02:55.4]} 10... c5 {[%clk 0:02:25.7]} 11. O-O
{[%clk 0:02:55.1]} 11... Nc6 {[%clk 0:02:26.2]} 12. f3 {[%clk 0:02:52.3]} 12...
Re8 {[%clk 0:02:26.1]} 13. Rf2 {[%clk 0:02:52.2]} 13... Rc8 {[%clk 0:02:24.6]}
14. Ng3 {[%clk 0:02:51]} 14... Na5 {[%clk 0:01:58.5]} 15. e4 {[%clk 0:02:30.4]}
15... cxd4 {[%clk 0:01:55.9]} 16. cxd4 {[%clk 0:02:27.8]} 16... dxe4 {[%clk
0:01:42.3]} 17. fxe4 {[%clk 0:02:14.2]} 17... Nc6 {[%clk 0:00:39.1]} 18. Bb2
{[%clk 0:02:04.6]} 18... h5 {[%clk 0:00:33]} 19. Nxh5 {[%clk 0:01:04.4]} 19...
Nxe4 {[%clk 0:00:29.1]} 20. Bxe4 {[%clk 0:01:03.3]} 20... Rxe4 {[%clk 0:00:30]}
21. d5 {[%clk 0:01:01.3]} 21... Ne5 {[%clk 0:00:22.6]} 22. Ng3 {[%clk 0:01:00]}
22... Re3 {[%clk 0:00:15.9]} 23. Nf5 {[%clk 0:00:47.3]} 23... Re4 {[%clk
0:00:15.5]} 24. Ng3 {[%clk 0:00:43.2]} 24... Re3 {[%clk 0:00:15.6]} 25. Qd4
{[%clk 0:00:42.1]} 25... Qg5 {[%clk 0:00:08.5]} 26. d6 {[%clk 0:00:34.1]} 26...
Bb7 {[%clk 0:00:05.6]} 27. Rf5 {[%clk 0:00:24.9]} 27... Rxg3 {[%clk 0:00:04.9]}
28. Rxg5 {[%clk 0:00:18.6]} 28... Nf3+ {[%clk 0:00:05]} 29. Kf2 {[%clk
0:00:13.3]} 29... Nxd4 {[%clk 0:00:05.2]} 30. Kxg3 {[%clk 0:00:12.4]} 30... Ne6
{[%clk 0:00:03.2]} 31. Re5 {[%clk 0:00:11.9]} 31... Rd8 {[%clk 0:00:01.9]} 32.
Rd1 {[%clk 0:00:11.5]} 32... Nc5 {[%clk 0:00:01.4]} 33. h3 {[%clk 0:00:09.8]}
33... Ne4+ {[%clk 0:00:01.9]} 34. Kh2 {[%clk 0:00:10.1]} 34... Nc5 {[%clk
0:00:01.2]} 35. Bc3 {[%clk 0:00:09.3]} 35... Ne6 {[%clk 0:00:01.5]} 36. d7
{[%clk 0:00:08.8]} 36... Rxd7 {[%clk 0:00:02.4]} 37. Rxd7 {[%clk 0:00:08.5]} 1-0

[Event "*** Titled Tuesday Blitz"]
[Site "Chess.com"]
[Date "2021.04.27"]
[Round "6"]
[White "Make_it_shine060"]
[Black "Alextorngren"]
[Result "0-1"]
[WhiteElo "2165"]
[BlackElo "2281"]
[TimeControl "180+1"]
[EndTime "11:06:47 PDT"]
[Termination "Alextorngren won by checkmate"]

1. d4 {[%clk 0:03:00.9]} 1... Nf6 {[%clk 0:02:58.8]} 2. c4 {[%clk 0:03:00.5]}
2... g6 {[%clk 0:02:59.4]} 3. Nc3 {[%clk 0:03:00]} 3... Bg7 {[%clk 0:03:00]} 4.
e4 {[%clk 0:03:00]} 4... d6 {[%clk 0:03:00.6]} 5. Nge2 {[%clk 0:02:58.9]} 5...
O-O {[%clk 0:03:01.1]} 6. Ng3 {[%clk 0:02:59.2]} 6... e5 {[%clk 0:02:45.2]} 7.
d5 {[%clk 0:02:57.1]} 7... h5 {[%clk 0:02:45.7]} 8. h4 {[%clk 0:02:55.7]} 8...
c6 {[%clk 0:02:42.9]} 9. Be2 {[%clk 0:02:52.9]} 9... cxd5 {[%clk 0:02:43]} 10.
cxd5 {[%clk 0:02:50.9]} 10... Na6 {[%clk 0:02:26.9]} 11. Bg5 {[%clk 0:02:48.5]}
11... Nc5 {[%clk 0:02:14.6]} 12. Bxh5 {[%clk 0:02:43.3]} 12... Qb6 {[%clk
0:02:06.4]} 13. Be2 {[%clk 0:02:34.3]} 13... Qxb2 {[%clk 0:02:04.3]} 14. Rc1
{[%clk 0:02:31.9]} 14... Bd7 {[%clk 0:01:58.7]} 15. h5 {[%clk 0:02:27.5]} 15...
Rac8 {[%clk 0:01:57]} 16. Bd2 {[%clk 0:02:14.5]} 16... a6 {[%clk 0:01:40.5]} 17.
Rb1 {[%clk 0:02:06.8]} 17... Qa3 {[%clk 0:01:40.3]} 18. h6 {[%clk 0:01:34.7]}
18... Bh8 {[%clk 0:01:36.8]} 19. O-O {[%clk 0:01:32.3]} 19... b5 {[%clk
0:01:31.3]} 20. Bf3 {[%clk 0:01:20]} 20... Kh7 {[%clk 0:01:22]} 21. Nge2 {[%clk
0:01:12.6]} 21... b4 {[%clk 0:01:13.3]} 22. Kh2 {[%clk 0:00:19.9]} 22... bxc3
{[%clk 0:01:12.5]} 23. Bxc3 {[%clk 0:00:19.8]} 23... Ng4+ {[%clk 0:01:00.3]} 24.
Kg3 {[%clk 0:00:18.6]} 24... f5 {[%clk 0:00:58.8]} 25. exf5 {[%clk 0:00:17.7]}
25... gxf5 {[%clk 0:00:56.3]} 26. Bxg4 {[%clk 0:00:17.2]} 26... fxg4 {[%clk
0:00:55.9]} 27. Rh1 {[%clk 0:00:16.6]} 27... Ne4+ {[%clk 0:00:52.7]} 28. Kh2
{[%clk 0:00:15.6]} 28... Nxc3 {[%clk 0:00:50.9]} 29. Nxc3 {[%clk 0:00:11.8]}
29... Qxc3 {[%clk 0:00:48.8]} 30. Rb7 {[%clk 0:00:11.2]} 30... Rc7 {[%clk
0:00:44.2]} 31. Qb1+ {[%clk 0:00:10.1]} 31... Bf5 {[%clk 0:00:39.4]} 32. Qb6
{[%clk 0:00:09.4]} 32... Rff7 {[%clk 0:00:32.6]} 33. Rb8 {[%clk 0:00:07.8]}
33... g3+ {[%clk 0:00:19.7]} 34. fxg3 {[%clk 0:00:07.5]} 34... e4 {[%clk
0:00:20]} 35. Qxd6 {[%clk 0:00:05.9]} 35... Be5 {[%clk 0:00:16.1]} 36. Qd8
{[%clk 0:00:04.9]} 36... Qxg3+ {[%clk 0:00:15.6]} 37. Kg1 {[%clk 0:00:04.3]}
37... Qe1# {[%clk 0:00:16.5]} 0-1